fUST/lending_fUST_20250630
["ID","MTS","AMOUNT","RATE_DAILY","PERIOD"]
[368606642,1751231440151,-377.28972154,0.00018604,2]
[368606643,1751231440161,-578.04,0.00018604,2]
[368606644,1751231440171,-3970.58,0.00018604,2]
[368606645,1751231440184,-460.0,0.00018604,2]
[368606646,1751231440194,-574.56,0.00018604,2]
[368606647,1751231440204,-1352.99,0.00018604,2]
[368606648,1751231440213,-460.0,0.00018604,2]
[368606649,1751231440225,-500.0,0.00018604,2]
[368606650,1751231440235,-500.0,0.00018604,2]
[368606651,1751231440244,-460.0,0.00018604,2]
[368606653,1751231440254,-473.8,0.00018604,2]
[368606654,1751231440264,-460.0,0.00018604,2]
[368606655,1751231440273,-575.12,0.00018604,2]
[368606656,1751231440283,-1314.52,0.00018604,2]
[368606657,1751231440292,-754.6,0.00018604,2]
[368606658,1751231440302,-460.0,0.00018604,2]
[368606659,1751231440312,-460.0,0.00018605,2]
[368606660,1751231440322,-531.17,0.00018605,2]
[368606661,1751231440331,-460.0,0.00018605,2]
[368606662,1751231440341,-460.0,0.00018605,2]
[368606663,1751231440351,-460.0,0.00018605,2]
[368606664,1751231440360,-460.0,0.00018605,2]
[368606665,1751231440369,-460.0,0.00018605,2]
[368606666,1751231440379,-460.0,0.00018605,2]
[368606667,1751231440389,-460.0,0.00018606,2]
[368606668,1751231440399,-460.0,0.00018606,2]
[368606669,1751231440410,-460.0,0.00018606,2]
[368606670,1751231440422,-474.72,0.00018607,2]
[368606671,1751231440432,-460.0,0.00018607,2]
[368606672,1751231440441,-460.0,0.00018607,2]
[368606673,1751231440451,-1182.0,0.00018726,2]
[368606674,1751231440462,-560.0,0.00018867,3]
[368606675,1751231440472,-460.0,0.00018876,2]
[368606676,1751231440482,-440.0,0.00018876,2]
[368606677,1751231440493,-460.17,0.00018876,2]
[368606678,1751231440503,-535.05,0.00018876,2]
[368606679,1751231440513,-1932.62,0.00018876,2]
[368606680,1751231440523,-460.0,0.00018876,2]
[368606681,1751231440532,-460.0,0.00018876,2]
[368606682,1751231440542,-2808.63,0.00018876,2]
[368606683,1751231440552,-1682.73,0.00018877,2]
[368606684,1751231440561,-460.0,0.00018877,2]
[368606685,1751231440571,-1366.18,0.00018877,2]
[368606686,1751231440581,-2536.25,0.00018877,2]
[368606687,1751231440591,-460.0,0.00018877,2]
[368606688,1751231440600,-590.48693729,0.00018877,2]
[368606689,1751231440610,-620.64,0.00018877,2]
[368606690,1751231440620,-460.0,0.00018877,2]
[368606691,1751231440629,-654.36,0.00018877,2]
[368606692,1751231440639,-460.0,0.00018877,2]
[368606693,1751231440649,-546.76,0.00018877,2]
[368606694,1751231440658,-460.0,0.00018877,2]
[368606695,1751231440668,-460.0,0.00018877,2]
[368606696,1751231440678,-460.0,0.00018877,2]
[368606697,1751231440687,-2558.12,0.00018877,2]
[368606698,1751231440697,-460.0,0.00018877,2]
[368606699,1751231440707,-460.0,0.00018877,2]
[368606700,1751231440717,-859.86,0.00018877,2]
[368606701,1751231440728,-3042.19,0.00018877,2]
[368606702,1751231440739,-3237.55,0.00018877,2]
[368606703,1751231440749,-476.42,0.00018877,2]
[368606704,1751231440759,-460.0,0.00018877,2]
[368606705,1751231440768,-500.0,0.00018877,2]
[368606706,1751231440778,-1474.57,0.00018877,2]
[368606707,1751231440788,-532.24,0.00018877,2]
[368606708,1751231440798,-460.0,0.00018877,2]
[368606709,1751231440809,-533.75,0.00018877,2]
[368606710,1751231440820,-460.0,0.00018877,2]
[368606711,1751231440831,-460.0,0.00018877,2]
[368606712,1751231440842,-460.0,0.00018877,2]
[368606713,1751231440851,-460.0,0.00018877,2]
[368606714,1751231440861,-460.0,0.00018877,2]
[368606715,1751231440871,-439.29,0.00018877,2]
[368606716,1751231440880,-460.0,0.00018877,2]
[368606717,1751231440890,-1015.38,0.00018877,2]
[368606719,1751231440900,-861.66,0.00018877,2]
[368606720,1751231440909,-353.32,0.00018878,2]
[368606721,1751231440919,-460.0,0.00018878,2]
[368606722,1751231440929,-460.0,0.00018878,2]
[368606723,1751231440939,-460.0,0.00018878,2]
[368606724,1751231440949,-460.0,0.00018878,2]
[368606725,1751231440958,-550.4,0.00018878,2]
[368606726,1751231440969,-460.0,0.00018878,2]
[368606727,1751231440978,-779.39,0.00018878,2]
[368606728,1751231440988,-523.21,0.00018878,2]
[368606729,1751231440998,-460.0,0.00018878,2]
[368606730,1751231441008,-651.82,0.00018878,2]
[368606731,1751231441017,-460.0,0.00018878,2]
[368606732,1751231441027,-460.0,0.00018878,2]
[368606733,1751231441037,-460.0,0.00018878,2]
[368606734,1751231441047,-460.0,0.00018878,2]
[368606735,1751231441056,-460.0,0.00018878,2]
[368606736,1751231441066,-578.04,0.00018878,2]
[368606737,1751231441076,-3970.58,0.00018878,2]
[368606738,1751231441085,-460.0,0.00018878,2]
[368606739,1751231441095,-1352.99,0.00018878,2]
[368606740,1751231441105,-460.0,0.00018878,2]
[368606741,1751231441115,-500.0,0.00018878,2]
[368606742,1751231441124,-500.0,0.00018878,2]
[368606743,1751231441134,-460.0,0.00018878,2]
[368606744,1751231441143,-473.8,0.00018878,2]
[368606745,1751231441153,-460.0,0.00018878,2]
[368606746,1751231441163,-575.12,0.00018878,2]
[368606747,1751231441172,-1314.52,0.00018878,2]
[368606748,1751231441182,-754.6,0.00018878,2]
[368606749,1751231441191,-216.4,0.00018878,2]
[368606750,1751231441201,-460.0,0.00018879,2]
[368606751,1751231441210,-531.17,0.00018879,2]
[368606752,1751231441398,-460.0,0.00018879,2]
[368606753,1751231441415,-460.0,0.00018879,2]
[368606754,1751231441424,-460.0,0.0001888,2]
[368606755,1751231441434,-484.1565505,0.0001888,2]
[368606756,1751231441443,-460.0,0.0001888,2]
[368606757,1751231441453,-474.72,0.00018881,2]
[368606758,1751231441463,-662.47046045,0.00018896,2]
[368606759,1751231441473,-782.84543574,0.00019053,2]
[368606760,1751231441482,-460.0,0.0001915,2]
[368606761,1751231441493,-460.17,0.0001915,2]
[368606762,1751231441502,-535.05,0.0001915,2]
[368606763,1751231441511,-1932.62,0.0001915,2]
[368606764,1751231441521,-460.0,0.0001915,2]
[368606765,1751231441530,-2808.63,0.0001915,2]
[368606766,1751231441539,-153.0,0.00019151,2]
[368606767,1751231441549,-153.0,0.00019151,2]
[368606768,1751231441558,-1682.73,0.00019151,2]
[368606769,1751231441567,-460.0,0.00019151,2]
[368606770,1751231441576,-1366.18,0.00019151,2]
[368606771,1751231441586,-2536.25,0.00019151,2]
[368606772,1751231441595,-460.0,0.00019151,2]
[368606773,1751231441605,-620.64,0.00019151,2]
[368606774,1751231441614,-460.0,0.00019151,2]
[368606775,1751231441623,-654.36,0.00019151,2]
[368606776,1751231441633,-546.76,0.00019151,2]
[368606777,1751231441642,-430.4361999,0.00019151,2]
[368606778,1751231441651,-460.0,0.00019151,2]
[368606779,1751231441661,-2558.12,0.00019151,2]
[368606780,1751231441671,-460.0,0.00019151,2]
[368606781,1751231441680,-460.0,0.00019151,2]
[368606782,1751231441689,-859.86,0.00019151,2]
[368606783,1751231441698,-3042.19,0.00019151,2]
[368606784,1751231441708,-3237.55,0.00019151,2]
[368606785,1751231441719,-476.42,0.00019151,2]
[368606786,1751231441731,-460.0,0.00019151,2]
[368606787,1751231441741,-500.0,0.00019151,2]
[368606788,1751231441753,-1474.57,0.00019151,2]
[368606789,1751231441763,-532.24,0.00019151,2]
[368606790,1751231441773,-460.0,0.00019151,2]
[368606791,1751231441783,-533.75,0.00019151,2]
[368606792,1751231441794,-460.0,0.00019151,2]
[368606793,1751231441804,-460.0,0.00019151,2]
[368606794,1751231441814,-460.0,0.00019151,2]
[368606795,1751231441823,-460.0,0.00019151,2]
[368606796,1751231441832,-460.0,0.00019151,2]
[368606797,1751231441842,-460.0,0.00019151,2]
[368606798,1751231441851,-1015.38,0.00019151,2]
[368606799,1751231441861,-861.66,0.00019151,2]
[368606800,1751231441870,-460.0,0.00019152,2]
[368606801,1751231441880,-460.0,0.00019152,2]
[368606802,1751231441889,-460.0,0.00019152,2]
[368606803,1751231441899,-550.4,0.00019152,2]
[368606804,1751231441908,-460.0,0.00019152,2]
[368606805,1751231441919,-779.39,0.00019152,2]
[368606806,1751231441930,-523.21,0.00019152,2]
[368606807,1751231441940,-460.0,0.00019152,2]
[368606808,1751231441950,-651.82,0.00019152,2]
[368606809,1751231441960,-460.0,0.00019152,2]
[368606810,1751231441970,-460.0,0.00019152,2]
[368606811,1751231441981,-460.0,0.00019152,2]
[368606812,1751231441992,-460.0,0.00019152,2]
[368606813,1751231442002,-578.04,0.00019152,2]
[368606814,1751231442011,-3970.58,0.00019152,2]
[368606815,1751231442021,-460.0,0.00019152,2]
[368606816,1751231442031,-460.0,0.00019152,2]
[368606817,1751231442041,-1352.99,0.00019152,2]
[368606818,1751231442051,-500.0,0.00019152,2]
[368606819,1751231442061,-473.8,0.00019152,2]
[368606820,1751231442071,-417.19135811,0.00019152,2]
[368606821,1751231442081,-575.12,0.00019152,2]
[368606822,1751231442090,-1314.52,0.00019152,2]
[368606823,1751231442100,-754.6,0.00019152,2]
[368606824,1751231442110,-475.59879967,0.00019153,2]
[368606825,1751231442119,-531.17,0.00019153,2]
[368606826,1751231442129,-460.0,0.00019153,2]
[368606827,1751231442139,-460.0,0.00019153,2]
[368606828,1751231442150,-377.0,0.00019154,2]
[368606829,1751231442160,-460.0,0.00019154,2]
[368606830,1751231442171,-474.72,0.00019155,2]
[368606831,1751231442188,-1182.0,0.00019159,2]
[368606832,1751231442203,-478.899777,0.00019178,2]
[368606833,1751231442214,-11917.82337634,0.00019221,2]
[368606834,1751231442226,-500.0,0.0001925,2]
[368606835,1751231442236,-500.0,0.0001928,2]
[368606836,1751231442246,-502.29311935,0.0001928,2]
[368606837,1751231442256,-500.0,0.0001928,2]
[368606838,1751231442265,-500.0,0.0001928,2]
[368606839,1751231442274,-500.0,0.0001928,2]
[368606840,1751231442284,-500.0,0.0001928,2]
[368606841,1751231442294,-500.0,0.0001928,2]
[368606842,1751231442304,-500.0,0.0001928,2]
[368606843,1751231442313,-500.0,0.0001928,2]
[368606844,1751231442323,-500.0,0.0001928,2]
[368606845,1751231442332,-500.0,0.00019285,2]
[368606846,1751231442344,-500.0,0.0001931,2]
[368606847,1751231442353,-500.0,0.0001931,2]
[368606848,1751231442364,-338.86733271,0.00019313,2]
[368606849,1751231442373,-456.310676,0.00019313,2]
[368606850,1751231442383,-331.40398656,0.00019313,2]
[368606851,1751231442393,-500.0,0.00019313,2]
[368606852,1751231442402,-500.0,0.00019321,2]
[368606853,1751231442414,-61829.66135223,0.00019329,2]
[368606854,1751231442424,-1182.0,0.00019353,2]
[368606855,1751231442433,-160.0,0.00019401,2]
[368606856,1751231442443,-837.1293463,0.00019401,2]
[368606857,1751231442453,-160.0,0.00019401,2]
[368606858,1751231442462,-160.0,0.00019401,2]
[368606859,1751231442472,-213.82031328,0.00019401,2]
[368606860,1751231442481,-230.30207649,0.00019401,2]
[368606861,1751231442491,-847.31290578,0.00019401,2]
[368606862,1751231442501,-12567.05932091,0.00019401,2]
[368606863,1751231442510,-160.0,0.00019401,2]
[368606864,1751231442520,-214.97967293,0.00019401,2]
[368606865,1751231442529,-160.0,0.00019401,2]
[368606866,1751231442538,-160.0,0.00019401,2]
[368606867,1751231442547,-160.0,0.00019402,2]
[368606868,1751231442556,-460.0,0.00019424,2]
[368606869,1751231442566,-460.17,0.00019424,2]
[368606870,1751231442575,-535.05,0.00019424,2]
[368606871,1751231442586,-1932.62,0.00019424,2]
[368606872,1751231442596,-460.0,0.00019424,2]
[368606873,1751231442606,-2808.63,0.00019424,2]
[368606874,1751231442615,-1682.73,0.00019425,2]
[368606875,1751231442624,-1366.18,0.00019425,2]
[368606876,1751231442633,-2536.25,0.00019425,2]
[368606877,1751231442643,-620.64,0.00019425,2]
[368606878,1751231442652,-654.36,0.00019425,2]
[368606879,1751231442661,-546.76,0.00019425,2]
[368606880,1751231442671,-460.0,0.00019425,2]
[368606881,1751231442680,-2558.12,0.00019425,2]
[368606882,1751231442689,-460.0,0.00019425,2]
[368606883,1751231442699,-460.0,0.00019425,2]
[368606884,1751231442708,-859.86,0.00019425,2]
[368606885,1751231442718,-3042.19,0.00019425,2]
[368606886,1751231442728,-3237.55,0.00019425,2]
[368606887,1751231442739,-476.42,0.00019425,2]
[368606888,1751231442749,-460.0,0.00019425,2]
[368606889,1751231442758,-500.0,0.00019425,2]
[368606890,1751231442768,-199.9539051,0.00019425,2]
[368606891,1751231442777,-1474.57,0.00019425,2]
[368606892,1751231442787,-532.24,0.00019425,2]
[368606893,1751231442796,-460.0,0.00019425,2]
[368606894,1751231442807,-533.75,0.00019425,2]
[368606895,1751231442817,-367.94,0.00019425,2]
[368606896,1751231442826,-460.0,0.00019425,2]
[368606897,1751231442835,-460.0,0.00019425,2]
[368606898,1751231442845,-460.0,0.00019425,2]
[368606899,1751231442855,-460.0,0.00019425,2]
[368606900,1751231442866,-1015.38,0.00019425,2]
[368606901,1751231442875,-861.66,0.00019425,2]
[368606902,1751231442885,-460.0,0.00019426,2]
[368606903,1751231442894,-460.0,0.00019426,2]
[368606904,1751231442903,-550.4,0.00019426,2]
[368606905,1751231442912,-460.0,0.00019426,2]
[368606906,1751231442922,-779.39,0.00019426,2]
[368606907,1751231442931,-523.21,0.00019426,2]
[368606908,1751231442941,-460.0,0.00019426,2]
[368606909,1751231442951,-651.82,0.00019426,2]
[368606910,1751231442960,-1191.33,0.00019426,2]
[368606911,1751231442970,-460.0,0.00019426,2]
[368606912,1751231442979,-460.0,0.00019426,2]
[368606913,1751231442988,-460.0,0.00019426,2]
[368606914,1751231442998,-460.0,0.00019426,2]
[368606915,1751231443008,-460.0,0.00019426,2]
[368606916,1751231443017,-460.0,0.00019426,2]
[368606917,1751231443027,-1111.32,0.00019426,2]
[368606918,1751231443036,-460.0,0.00019426,2]
[368606919,1751231443046,-1706.57,0.00019426,2]
[368606920,1751231443056,-578.04,0.00019426,2]
[368606921,1751231443066,-3970.58,0.00019426,2]
[368606922,1751231443076,-460.0,0.00019426,2]
[368606923,1751231443086,-460.0,0.00019426,2]
[368606924,1751231443095,-910.47,0.00019426,2]
[368606925,1751231443105,-460.0,0.00019426,2]
[368606927,1751231443114,-1352.99,0.00019426,2]
[368606928,1751231443123,-1386.89,0.00019426,2]
[368606929,1751231443133,-473.8,0.00019426,2]
[368606930,1751231443143,-575.12,0.00019426,2]
[368606931,1751231443152,-695.26,0.00019426,2]
[368606933,1751231443161,-1314.52,0.00019426,2]
[368606936,1751231443171,-4469.6,0.00019426,2]
[368606938,1751231443180,-754.6,0.00019426,2]
[368606940,1751231443190,-1495.33,0.00019426,2]
[368606945,1751231443199,-510.03468,0.00019427,2]
[368606947,1751231443208,-1979.042395,0.00019427,2]
[368606950,1751231443217,-1979.042395,0.00019427,2]
[368606953,1751231443226,-531.17,0.00019427,2]
[368606956,1751231443236,-460.0,0.00019427,2]
[368606957,1751231443246,-151.0,0.00019428,2]
[368606958,1751231443255,-151.0,0.00019428,2]
[368606959,1751231443265,-337.186017,0.00019428,2]
[368606960,1751231443274,-337.186017,0.00019428,2]
[368606961,1751231443284,-151.0,0.00019428,2]
[368606962,1751231443294,-985.639829,0.00019428,2]
[368606963,1751231443304,-985.639829,0.00019428,2]
[368606964,1751231443314,-474.72,0.00019429,2]
[368606965,1751231443323,-377.548883,0.0001943,2]
[368606966,1751231443332,-377.548883,0.0001943,2]
[368606967,1751231443342,-151.0,0.0001943,2]
[368606968,1751231443352,-500.0,0.00019439,2]
[368606969,1751231443361,-500.0,0.00019439,2]
[368606970,1751231443371,-500.0,0.00019439,2]
[368606971,1751231443380,-500.0,0.00019439,2]
[368606972,1751231443390,-500.0,0.00019439,2]
[368606973,1751231443400,-500.0,0.00019439,2]
[368606974,1751231443413,-500.0,0.00019439,2]
[368606975,1751231443422,-274.88192691,0.00019453,2]
[368606976,1751231443432,-151.0,0.00019457,2]
[368606977,1751231443441,-151.0,0.00019457,2]
[368606978,1751231443450,-501.72407384,0.00019475,2]
[368606979,1751231443461,-500.0,0.00019482,2]
[368606980,1751231443471,-500.0,0.00019482,2]
[368606981,1751231443480,-500.0,0.00019482,2]
[368606982,1751231443493,-207.4,0.00019523,2]
[368606983,1751231443502,-5000.0,0.00019523,2]
[368606984,1751231443512,-159.291355,0.00019534,2]
[368606985,1751231443521,-1149.7195556,0.00019534,2]
[368606986,1751231443531,-153.0,0.00019534,2]
[368606987,1751231443540,-355.0769662,0.00019534,2]
[368606988,1751231443550,-306.0,0.00019534,2]
[368606989,1751231443559,-159.291355,0.00019534,2]
[368606990,1751231443570,-159.0320105,0.00019534,2]
[368606991,1751231443580,-500.0,0.00019538,2]
[368606992,1751231443591,-500.0,0.00019538,2]
[368606993,1751231443600,-267.06231988,0.00019538,2]
[368606994,1751231443610,-500.0,0.00019538,2]
[368606996,1751231443620,-662.47046045,0.00019564,2]
[368606998,1751231443629,-500.0,0.00019574,2]
[368607000,1751231443638,-500.0,0.00019576,2]
[368607002,1751231443648,-500.0,0.00019576,2]
[368607004,1751231443657,-500.0,0.00019576,2]
[368607006,1751231443666,-460.0,0.00019698,2]
[368607008,1751231443676,-460.17,0.00019698,2]
[368607009,1751231443684,-535.05,0.00019698,2]
[368607010,1751231443695,-1932.62,0.00019698,2]
[368607011,1751231443704,-377.83,0.00019698,2]
[368607013,1751231443714,-2808.63,0.00019698,2]
[368607015,1751231443723,-1682.73,0.00019699,2]
[368607016,1751231443732,-1366.18,0.00019699,2]
[368607017,1751231443741,-2536.25,0.00019699,2]
[368607018,1751231443751,-620.64,0.00019699,2]
[368607019,1751231443760,-654.36,0.00019699,2]
[368607020,1751231443770,-546.76,0.00019699,2]
[368607021,1751231443779,-2558.12,0.00019699,2]
[368607022,1751231443789,-460.0,0.00019699,2]
[368607023,1751231443799,-460.0,0.00019699,2]
[368607024,1751231443809,-859.86,0.00019699,2]
[368607025,1751231443819,-3042.19,0.00019699,2]
[368607026,1751231443828,-3237.55,0.00019699,2]
[368607027,1751231443839,-476.42,0.00019699,2]
[368607028,1751231443848,-460.0,0.00019699,2]
[368607030,1751231443858,-1474.57,0.00019699,2]
[368607031,1751231443867,-532.24,0.00019699,2]
[368607032,1751231443876,-460.0,0.00019699,2]
[368607033,1751231443886,-533.75,0.00019699,2]
[368607034,1751231443895,-460.0,0.00019699,2]
[368607035,1751231443905,-556.39,0.00019699,2]
[368607036,1751231443915,-460.0,0.00019699,2]
[368607037,1751231443925,-460.0,0.00019699,2]
[368607038,1751231443934,-1015.38,0.00019699,2]
[368607039,1751231443943,-861.66,0.00019699,2]
[368607040,1751231443953,-460.0,0.000197,2]
[368607041,1751231443962,-550.4,0.000197,2]
[368607042,1751231443972,-779.39,0.000197,2]
[368607043,1751231443982,-523.21,0.000197,2]
[368607044,1751231443991,-651.82,0.000197,2]
[368607045,1751231444001,-1191.33,0.000197,2]
[368607046,1751231444010,-460.0,0.000197,2]
[368607047,1751231444019,-460.0,0.000197,2]
[368607048,1751231444028,-460.0,0.000197,2]
[368607049,1751231444037,-460.0,0.000197,2]
[368607050,1751231444046,-460.0,0.000197,2]
[368607051,1751231444056,-460.0,0.000197,2]
[368607052,1751231444065,-1111.32,0.000197,2]
[368607053,1751231444074,-460.0,0.000197,2]
[368607054,1751231444083,-1706.57,0.000197,2]
[368607055,1751231444093,-578.04,0.000197,2]
[368607056,1751231444103,-3970.58,0.000197,2]
[368607057,1751231444112,-500.79525707,0.000197,2]
[368607058,1751231444121,-460.0,0.000197,2]
[368607059,1751231444131,-910.47,0.000197,2]
[368607060,1751231444140,-460.0,0.000197,2]
[368607061,1751231444149,-1352.99,0.000197,2]
[368607062,1751231444159,-1386.89,0.000197,2]
[368607063,1751231444168,-473.8,0.000197,2]
[368607064,1751231444178,-575.12,0.000197,2]
[368607065,1751231444187,-695.26,0.000197,2]
[368607066,1751231444197,-1314.52,0.000197,2]
[368607067,1751231444206,-4469.6,0.000197,2]
[368607068,1751231444216,-754.6,0.000197,2]
[368607069,1751231444226,-1495.33,0.000197,2]
[368607070,1751231444235,-531.17,0.00019701,2]
[368607071,1751231444245,-460.0,0.00019701,2]
[368607072,1751231444255,-474.72,0.00019703,2]
[368607073,1751231444265,-782.84543572,0.0001971,2]
[368607074,1751231444275,-1182.0,0.00019724,2]
[368607075,1751231444286,-19742.72723519,0.00019775,2]
[368607076,1751231444296,-500.90268572,0.00019828,2]
[368607077,1751231444305,-1000.0,0.00019828,2]
[368607078,1751231444315,-460.0,0.00019828,2]
[368607079,1751231444324,-1000.0,0.00019828,2]
[368607080,1751231444333,-1000.0,0.00019828,2]
[368607081,1751231444343,-1000.0,0.00019828,2]
[368607082,1751231444352,-504.28252098,0.00019828,2]
[368607083,1751231444362,-1000.0,0.00019858,2]
[368607084,1751231444371,-1000.0,0.00019858,2]
[368607085,1751231444381,-1000.0,0.00019869,2]
[368607086,1751231444391,-1182.0,0.00019901,2]
[368607087,1751231444400,-500.68364037,0.00019944,2]
[368607088,1751231444411,-460.0,0.00019972,2]
[368607089,1751231444422,-460.17,0.00019972,2]
[368607090,1751231444432,-535.05,0.00019972,2]
[368607091,1751231444442,-1932.62,0.00019972,2]
[368607092,1751231444454,-2808.63,0.00019972,2]
[368607093,1751231444463,-153.0,0.00019973,2]
[368607094,1751231444473,-1682.73,0.00019973,2]
[368607095,1751231444484,-1366.18,0.00019973,2]
[368607096,1751231444498,-2536.25,0.00019973,2]
[368607097,1751231444507,-620.64,0.00019973,2]
[368607098,1751231444516,-654.36,0.00019973,2]
[368607099,1751231444526,-546.76,0.00019973,2]
[368607100,1751231444535,-2558.12,0.00019973,2]
[368607101,1751231444545,-460.0,0.00019973,2]
[368607102,1751231444555,-460.0,0.00019973,2]
[368607103,1751231444564,-859.86,0.00019973,2]
[368607104,1751231444574,-3042.19,0.00019973,2]
[368607105,1751231444583,-3237.55,0.00019973,2]
[368607106,1751231444594,-476.42,0.00019973,2]
[368607107,1751231444603,-460.0,0.00019973,2]
[368607108,1751231444613,-1474.57,0.00019973,2]
[368607109,1751231444623,-532.24,0.00019973,2]
[368607110,1751231444633,-460.0,0.00019973,2]
[368607111,1751231444642,-533.75,0.00019973,2]
[368607112,1751231444651,-460.0,0.00019973,2]
[368607113,1751231444661,-460.0,0.00019973,2]
[368607114,1751231444670,-460.0,0.00019973,2]
[368607115,1751231444680,-1015.38,0.00019973,2]
[368607116,1751231444690,-861.66,0.00019973,2]
[368607117,1751231444700,-460.0,0.00019974,2]
[368607118,1751231444710,-550.4,0.00019974,2]
[368607119,1751231444719,-779.39,0.00019974,2]
[368607120,1751231444728,-523.21,0.00019974,2]
[368607121,1751231444738,-651.82,0.00019974,2]
[368607122,1751231444747,-1191.33,0.00019974,2]
[368607123,1751231444757,-460.0,0.00019974,2]
[368607124,1751231444767,-460.0,0.00019974,2]
[368607125,1751231444776,-460.0,0.00019974,2]
[368607126,1751231444787,-460.0,0.00019974,2]
[368607127,1751231444796,-28.23434307,0.00019974,2]
[368607128,1751231445227,-460.0,0.00018329,2]
[368607129,1751231445237,-460.0,0.00018603,2]
[368607130,1751231445247,-460.0,0.00018877,2]
[368607131,1751231445257,-150.0,0.000189,2]
[368607132,1751231445266,-380.04,0.00019151,2]
[368607133,1751231445276,-431.76565693,0.00019974,2]
[368607134,1751231445286,-460.0,0.00019974,2]
[368607135,1751231445296,-1111.32,0.00019974,2]
[368607136,1751231445305,-97.97434307,0.00019974,2]
[368607137,1751231445320,-362.02565693,0.00019974,2]
[368607138,1751231445331,-1239.67404698,0.00019974,2]
[368607139,1751231445343,-466.89595302,0.00019974,2]
[368607140,1751231445352,-578.04,0.00019974,2]
[368607141,1751231445361,-3970.58,0.00019974,2]
[368607142,1751231445371,-460.0,0.00019974,2]
[368607143,1751231445381,-910.47,0.00019974,2]
[368607144,1751231445390,-460.0,0.00019974,2]
[368607145,1751231445399,-1352.99,0.00019974,2]
[368607146,1751231445409,-1386.89,0.00019974,2]
[368607147,1751231445423,-473.8,0.00019974,2]
[368607148,1751231445433,-575.12,0.00019974,2]
[368607149,1751231445442,-695.26,0.00019974,2]
[368607150,1751231445452,-1314.52,0.00019974,2]
[368607151,1751231445461,-4469.6,0.00019974,2]
[368607152,1751231445471,-754.6,0.00019974,2]
[368607153,1751231445480,-1495.33,0.00019974,2]
[368607154,1751231445490,-531.17,0.00019975,2]
[368607155,1751231445500,-460.0,0.00019975,2]
[368607156,1751231445509,-151.0,0.00019976,2]
[368607157,1751231445519,-510.03468,0.00019976,2]
[368607158,1751231445528,-151.0,0.00019976,2]
[368607159,1751231445538,-337.186017,0.00019976,2]
[368607160,1751231445547,-337.186017,0.00019976,2]
[368607161,1751231445558,-151.0,0.00019976,2]
[368607162,1751231445567,-1979.042395,0.00019976,2]
[368607163,1751231445577,-1979.042395,0.00019976,2]
[368607164,1751231445587,-474.72,0.00019977,2]
[368607165,1751231445596,-985.639829,0.00019977,2]
[368607166,1751231445606,-985.639829,0.00019977,2]
[368607167,1751231445615,-855.68245325,0.00019987,2]
[368607168,1751231445625,-1000.0,0.00019987,2]
[368607169,1751231445636,-1000.0,0.00019987,2]
[368607170,1751231445646,-1000.0,0.00019987,2]